bitfinex-derivatives/quotes_BTCF0:USTF0_20240830
["timestamp","ask_amount","ask_price","bid_price","bid_amount"]
[1724988915912,0.084686,59038.0,59037.0,0.001]
[1724988916118,0.083686,59038.0,59037.0,0.001]
[1724988916314,0.27832956,59038.0,59037.0,0.001]
[1724988917018,0.084689,59036.0,59035.0,0.084691]
[1724988917314,0.082689,59036.0,59035.0,0.084691]
[1724988917512,0.084691,59035.0,59034.0,0.13271946]
[1724988917713,0.084691,59035.0,59034.0,0.21741146]
[1724988917914,0.27970518,59035.0,59034.0,0.21741146]
[1724988919814,0.27870518,59035.0,59034.0,0.21741146]
[1724988920516,0.28270518,59035.0,59034.0,0.21841146]
[1724988921112,0.0542516,59035.0,59034.0,0.21841146]
[1724988921818,0.1389426,59035.0,59034.0,0.21841146]
[1724988922210,0.0542516,59035.0,59034.0,0.21841146]
[1724988922408,0.0542516,59035.0,59034.0,0.57921146]
[1724988923514,0.0502516,59035.0,59034.0,0.57821146]
[1724988923722,0.0502516,59035.0,59034.0,0.57921146]
[1724988924126,0.0502516,59035.0,59034.0,0.57821146]
[1724988924315,0.0532516,59035.0,59034.0,0.57821146]
[1724988925826,0.0532516,59035.0,59034.0,0.21741146]
[1724988926025,0.0532516,59035.0,59034.0,0.57821146]
[1724988926729,0.0532516,59035.0,59034.0,0.45821146]
[1724988926924,0.0532516,59035.0,59034.0,0.57821146]
[1724988927227,0.0502516,59035.0,59034.0,0.57821146]
[1724988928129,0.0552516,59035.0,59034.0,0.57821146]
[1724988930435,0.0542516,59035.0,59034.0,0.57821146]
[1724988930827,0.0502516,59035.0,59034.0,0.21741146]
[1724988931022,0.0542516,59035.0,59034.0,0.21741146]
[1724988933741,0.004,59035.0,59034.0,1.32557146]
[1724988934139,0.00415413,59042.0,59041.0,0.084682]
[1724988934440,0.18160505,59042.0,59041.0,0.204682]
[1724988935635,0.18160505,59042.0,59041.0,0.205682]
[1724988935636,0.18560505,59042.0,59041.0,0.205682]
[1724988935942,0.18560505,59042.0,59041.0,0.206682]
[1724988936936,0.18560505,59042.0,59041.0,0.260282]
[1724988938141,0.18560505,59042.0,59041.0,0.2729309]
[1724988938831,0.00425413,59042.0,59041.0,1.3810509]
[1724988939243,0.00425413,59042.0,59041.0,1.4657329]
[1724988940143,0.00425413,59042.0,59041.0,1.6073329]
[1724988940441,0.00425413,59042.0,59041.0,1.6083329]
[1724988944044,0.00425413,59042.0,59041.0,1.9691329]
[1724988949639,0.00425413,59042.0,59041.0,1.8265329]
[1724988949949,0.00425413,59042.0,59041.0,1.3690929]
[1724988950455,0.00425413,59042.0,59041.0,1.0082929]
[1724988950643,0.00425413,59042.0,59041.0,1.3690929]
[1724988951239,0.0589,59048.0,59041.0,1.3690929]
[1724988951445,0.0039,59052.0,59051.0,0.084668]
[1724988951744,0.3608,59061.0,59056.0,0.084661]
[1724988951745,0.0039,59061.0,59056.0,0.084661]
[1724988951946,0.0039,59061.0,59058.0,0.084657]
[1724988952151,0.084652,59062.0,59060.0,0.12]
[1724988952450,0.2642033,59061.0,59060.0,0.12]
[1724988952752,0.3608,59065.0,59056.0,0.3608]
[1724988952753,0.084656,59060.0,59056.0,0.3608]
[1724988952953,0.0547,59059.0,59056.0,0.3608]
[1724988953144,0.2931493,59059.0,59056.0,0.3608]
[1724988953544,0.3778053,59059.0,59056.0,0.3608]
[1724988953751,0.084661,59056.0,59055.0,0.00025413]
[1724988954050,0.27634664,59056.0,59055.0,0.00025413]
[1724988954439,0.27634664,59056.0,59055.0,0.01307312]
[1724988954643,0.27634664,59056.0,59055.0,0.00025413]
[1724988955154,0.27634664,59056.0,59055.0,0.00125413]
[1724988955342,0.27634664,59056.0,59055.0,0.00225413]
[1724988955948,0.27634664,59056.0,59055.0,0.01498993]
[1724988958253,0.27634664,59056.0,59055.0,0.09965193]
[1724988958862,0.19168564,59056.0,59055.0,0.09965193]
[1724988960655,0.19168564,59056.0,59055.0,0.46045193]
[1724988968452,0.0547,59059.0,59058.0,0.084658]
[1724988968653,0.0547,59059.0,59058.0,0.204658]
[1724988968949,0.24939412,59059.0,59058.0,0.204658]
[1724988970763,0.24939412,59059.0,59058.0,0.205658]
[1724988971063,0.24939412,59059.0,59058.0,0.206658]
[1724988971452,0.19469412,59059.0,59058.0,0.206658]
[1724988971764,0.18609668,59062.0,59060.0,0.084654]
[1724988972067,0.18609668,59062.0,59061.0,0.565454]
[1724988972965,0.0039,59068.0,59061.0,0.565454]
[1724988972966,0.0039,59068.0,59066.0,0.084646]
[1724988973160,0.03149349,59071.0,59066.0,0.565446]
[1724988973360,0.19416904,59067.0,59066.0,0.565446]
[1724988974665,0.19416904,59067.0,59066.0,0.566446]
[1724988975073,0.00025413,59067.0,59066.0,0.566446]
[1724988975258,0.00025413,59067.0,59066.0,0.567446]
[1724988976067,0.0039,59071.0,59070.0,0.084641]
[1724988976269,0.0578,59076.0,59075.0,0.084633]
[1724988976572,0.23566265,59076.0,59075.0,0.204633]
[1724988978059,0.23566265,59076.0,59075.0,0.084633]
[1724988978460,0.23566265,59076.0,59075.0,0.085633]
[1724988978970,0.23566265,59076.0,59075.0,0.09835013]
[1724988979360,0.23566265,59076.0,59075.0,0.09935013]
[1724988982364,0.68109465,59076.0,59075.0,0.002]
[1724988982560,1.78893465,59076.0,59075.0,0.002]
[1724988982759,1.87356665,59076.0,59075.0,0.002]
[1724988984870,1.27356665,59076.0,59075.0,0.002]
[1724988985658,0.084639,59071.0,59070.0,0.00025391]
[1724988985960,0.084639,59071.0,59053.0,0.01292875]
[1724988985961,0.169296,59065.0,59053.0,0.01292875]
[1724988986266,0.99686557,59065.0,59056.0,0.0039]
[1724988986468,0.084666,59052.0,59051.0,0.20793969]
[1724988986657,0.15413816,59052.0,59051.0,0.20793969]
[1724988986857,0.33937624,59052.0,59051.0,0.20793969]
[1724988987061,0.25471024,59052.0,59051.0,0.20793969]
[1724988987372,0.25471024,59052.0,59051.0,0.29260769]
[1724988987666,0.18523808,59052.0,59051.0,0.29260769]
[1724988987866,0.18523808,59052.0,59051.0,0.084668]
[1724988988079,0.18798577,59054.0,59051.0,0.084668]
[1724988988365,0.196461,59056.0,59051.0,0.084668]
[1724988988570,0.19276394,59053.0,59051.0,0.084668]
[1724988988767,0.19276394,59053.0,59051.0,0.088668]
[1724988988968,0.084662,59055.0,59051.0,0.088668]
[1724988989169,0.084662,59055.0,59051.0,0.091668]
[1724988989365,0.19276394,59052.0,59051.0,0.087668]
[1724988989567,0.19276394,59054.0,59051.0,0.091668]
[1724988989873,0.19491541,59052.0,59051.0,0.088668]
[1724988990275,0.19691541,59053.0,59051.0,0.088668]
[1724988990464,0.002,59053.0,59051.0,0.088668]
[1724988990663,0.18327602,59052.0,59051.0,0.088668]
[1724988991071,0.18327602,59052.0,59051.0,0.084668]
[1724988991359,0.18327602,59052.0,59051.0,0.085668]
[1724988991770,0.18527602,59052.0,59051.0,0.085668]
[1724988991974,0.18527602,59052.0,59051.0,0.086668]
[1724988992671,0.18527602,59052.0,59051.0,0.085668]
[1724988992878,0.18727602,59052.0,59051.0,0.086668]
[1724988994475,0.004,59052.0,59051.0,0.140068]
[1724988995478,0.002,59052.0,59051.0,0.139068]
[1724988995678,0.003,59052.0,59051.0,0.140068]
[1724988995878,0.001,59052.0,59051.0,0.139068]
[1724988996182,0.001,59052.0,59051.0,0.086668]
[1724988996183,0.003,59052.0,59051.0,0.086668]
[1724988997570,0.1982134,59052.0,59051.0,0.086668]
[1724989001083,0.1982134,59052.0,59051.0,0.085668]
[1724989001574,0.1982134,59052.0,59051.0,0.084668]
[1724989005982,0.1972134,59052.0,59051.0,0.084668]
[1724989006178,0.1982134,59052.0,59051.0,0.084668]
[1724989007682,0.1952134,59052.0,59051.0,0.084668]
[1724989007882,0.1982134,59052.0,59051.0,0.084668]
[1724989008085,0.003,59052.0,59051.0,0.084668]
[1724989008385,0.18291779,59052.0,59051.0,0.084668]
[1724989011183,0.18291779,59052.0,59048.0,0.01271108]
[1724989011385,0.08467,59050.0,59049.0,0.08467]
[1724989011791,0.27779578,59050.0,59049.0,0.08467]
[1724989014474,0.28079578,59050.0,59049.0,0.08467]
[1724989015283,0.19612578,59050.0,59049.0,0.37467]
[1724989016082,0.19612578,59050.0,59049.0,0.73547]
[1724989017282,0.19612578,59050.0,59049.0,1.328181]
[1724989017491,0.003,59050.0,59049.0,1.328181]
[1724989018082,0.002,59050.0,59049.0,1.328181]
[1724989018282,0.002,59050.0,59049.0,0.820141]
[1724989018483,0.0039,59059.0,59056.0,0.084661]
[1724989018686,0.084655,59061.0,59056.0,0.735461]
[1724989018894,0.18299093,59057.0,59056.0,0.735461]
[1724989020489,0.18299093,59057.0,59056.0,0.820122]
[1724989020490,0.00025391,59057.0,59056.0,0.820122]
[1724989020690,0.00225391,59057.0,59056.0,0.820122]
[1724989022385,0.00125391,59057.0,59056.0,0.820122]
[1724989022587,0.00125391,59057.0,59056.0,0.735461]
[1724989023089,0.00125391,59057.0,59056.0,0.74810016]
[1724989028393,0.00125391,59057.0,59056.0,0.37343916]
[1724989028599,0.26534622,59057.0,59056.0,0.01263916]
[1724989028799,0.18068722,59057.0,59049.0,0.3608]
[1724989028990,0.084664,59054.0,59049.0,0.37303026]
[1724989029195,0.0578,59053.0,59049.0,0.37303026]
[1724989029505,0.23723331,59053.0,59049.0,0.37303026]
[1724989029994,0.23723331,59053.0,59049.0,0.37903026]
[1724989030196,0.084669,59051.0,59049.0,0.37903026]
[1724989030400,0.084669,59050.0,59049.0,0.37903026]
[1724989030597,0.26327199,59050.0,59049.0,0.37303026]
[1724989030801,0.26327199,59050.0,59049.0,0.37903026]
[1724989031799,0.26327199,59050.0,59049.0,0.38503026]
[1724989032198,0.09332439,59050.0,59049.0,0.38503026]
[1724989032402,0.17799339,59050.0,59049.0,0.38503026]
[1724989033701,0.17899339,59050.0,59049.0,0.01823026]
[1724989034497,0.26366239,59050.0,59049.0,0.01823026]
[1724989034697,0.26466239,59050.0,59049.0,0.01223026]
[1724989034898,0.169348,59047.0,59041.0,0.0039]
[1724989035109,0.544022,59047.0,59038.0,0.0039]
[1724989035303,0.16937,59039.0,59038.0,0.0039]
[1724989035506,0.084697,59031.0,59030.0,0.0039]
[1724989035703,0.084697,59031.0,59028.0,0.00861757]
[1724989035898,0.084697,59031.0,59026.0,0.29]
[1724989036099,0.084697,59031.0,59026.0,0.30241351]
[1724989036801,0.083697,59031.0,59028.0,0.098699]
[1724989037105,0.00025391,59034.0,59030.0,0.6508]
[1724989037308,0.00025391,59034.0,59033.0,0.084694]
[1724989038704,0.00025391,59034.0,59033.0,0.445494]
[1724989039105,0.00025391,59034.0,59033.0,0.459494]
[1724989039502,0.00025391,59034.0,59033.0,0.47166538]
[1724989039904,0.00025391,59034.0,59033.0,0.48566538]
[1724989043903,0.00025391,59034.0,59033.0,0.57035938]
[1724989044109,0.0039,59039.0,59038.0,0.084686]
[1724989044310,0.0039,59043.0,59042.0,0.084681]
[1724989044517,0.084671,59049.0,59045.0,0.084676]
[1724989044818,0.18161972,59048.0,59045.0,0.084676]
[1724989045607,0.18161972,59048.0,59045.0,0.086676]
[1724989046108,0.18161972,59048.0,59045.0,0.087676]
[1724989046608,0.18161972,59048.0,59045.0,0.09978923]
[1724989049705,0.18161972,59048.0,59045.0,0.01511323]
[1724989050114,0.18161972,59048.0,59047.0,0.084674]
[1724989050614,0.18260784,59049.0,59048.0,0.084671]
[1724989050912,0.0548,59050.0,59048.0,0.084671]
[1724989051114,0.19470118,59049.0,59048.0,0.084671]
[1724989052214,0.19570118,59049.0,59048.0,0.084671]
[1724989052611,0.19670118,59049.0,59048.0,0.084671]
[1724989058517,0.19670118,59049.0,59048.0,0.169343]
[1724989060519,0.19670118,59049.0,59048.0,0.084671]
[1724989061217,0.19570118,59049.0,59048.0,0.086671]
[1724989061709,0.19470118,59049.0,59048.0,0.089671]
[1724989061908,0.19470118,59049.0,59048.0,0.088671]
[1724989062116,0.00025391,59052.0,59051.0,0.084668]
[1724989062315,0.00025391,59052.0,59051.0,0.445468]
[1724989062519,0.18497105,59052.0,59051.0,0.445468]
[1724989063925,0.18597105,59052.0,59051.0,0.445468]
[1724989065112,0.18697105,59052.0,59051.0,0.445468]
[1724989069633,0.18697105,59052.0,59051.0,0.45781488]
[1724989070528,0.18697105,59052.0,59051.0,0.54248288]
[1724989070728,0.00225391,59052.0,59051.0,0.54248288]
[1724989071035,0.00125391,59052.0,59051.0,0.54248288]
[1724989071323,0.084653,59062.0,59051.0,0.54248288]
[1724989071527,0.3608,59063.0,59057.0,0.084658]
[1724989071528,0.084654,59061.0,59057.0,0.084658]
[1724989071824,0.19099271,59059.0,59057.0,0.084658]
[1724989072030,0.084654,59061.0,59057.0,0.084658]
[1724989072230,0.19099271,59058.0,59057.0,0.084658]
[1724989072627,0.084654,59061.0,59057.0,0.084658]
[1724989072822,0.18102243,59059.0,59057.0,0.084658]
[1724989073125,0.002,59059.0,59058.0,0.084658]
[1724989073525,0.18102243,59059.0,59058.0,0.084658]
[1724989074024,0.26897414,59060.0,59058.0,0.084658]
[1724989074221,0.084655,59060.0,59058.0,0.084658]
[1724989074419,0.084655,59060.0,59059.0,0.084656]
[1724989074935,0.27124149,59060.0,59059.0,0.084656]
[1724989075432,0.18658649,59060.0,59059.0,0.084656]
[1724989075726,0.00149392,59063.0,59059.0,0.29]
[1724989075927,0.00025391,59063.0,59062.0,0.084652]
[1724989076236,0.17950173,59063.0,59062.0,0.084652]
[1724989076725,0.17950173,59063.0,59062.0,0.445452]
[1724989077128,0.18050173,59063.0,59062.0,0.446452]
[1724989077332,0.18050173,59063.0,59062.0,0.447452]
[1724989082432,0.26515273,59063.0,59062.0,0.3628]
[1724989082641,0.77307273,59063.0,59062.0,0.002]
[1724989086041,0.80066839,59063.0,59062.0,0.002]
[1724989087147,0.29274839,59063.0,59062.0,0.002]
[1724989087750,0.65354839,59063.0,59062.0,0.002]
[1724989090056,0.29274839,59063.0,59062.0,0.002]
[1724989090240,0.65354839,59063.0,59062.0,0.002]
[1724989091151,0.73819939,59063.0,59062.0,0.002]
[1724989095251,0.20809739,59063.0,59062.0,0.086652]
[1724989095451,0.18050173,59063.0,59062.0,0.376652]
[1724989096756,0.18050173,59063.0,59062.0,0.086652]
[1724989099553,0.17950173,59063.0,59062.0,0.085652]
[1724989099864,0.18050173,59063.0,59062.0,0.085652]
[1724989100245,0.18050173,59063.0,59062.0,0.084652]
[1724989102360,0.17950173,59063.0,59062.0,0.084652]
[1724989102557,0.07834978,59065.0,59063.0,0.084651]
[1724989102955,0.18557992,59064.0,59063.0,0.084651]
[1724989106058,0.18557992,59064.0,59063.0,0.085651]
[1724989106252,0.18557992,59064.0,59063.0,0.0993558]
[1724989108856,0.18557992,59064.0,59063.0,0.0973558]
[1724989110566,0.18130817,59066.0,59065.0,0.084647]
[1724989110865,0.18130817,59067.0,59065.0,0.084647]
[1724989111055,0.084644,59068.0,59065.0,0.084647]
[1724989111359,0.19266633,59066.0,59065.0,0.084647]
[1724989111567,0.19266633,59067.0,59065.0,0.084647]
[1724989111766,0.084644,59068.0,59065.0,0.084647]
[1724989111963,0.084644,59068.0,59067.0,0.12]
[1724989112466,0.27671299,59068.0,59067.0,0.12]
[1724989112763,0.27671299,59068.0,59067.0,0.204645]
[1724989115964,0.63751299,59068.0,59067.0,0.084645]
[1724989117866,0.63751299,59068.0,59067.0,0.085645]
[1724989118070,0.63751299,59068.0,59067.0,0.086645]
[1724989118770,0.63751299,59068.0,59067.0,0.085645]
[1724989118970,0.63751299,59068.0,59067.0,0.086645]
[1724989125466,1.83003699,59068.0,59067.0,0.002]
[1724989125673,0.084656,59059.0,59058.0,0.088558]
[1724989125873,0.084656,59059.0,59058.0,0.204658]
[1724989126070,0.27858456,59059.0,59058.0,0.204658]
[1724989126576,0.27858456,59059.0,59058.0,0.21736381]
[1724989128772,0.19392856,59059.0,59058.0,0.21836381]
[1724989128968,0.19592856,59059.0,59058.0,0.66382181]
[1724989129180,0.0039,59066.0,59065.0,0.084648]
[1724989129375,0.11631853,59073.0,59068.0,0.084643]
[1724989129678,0.084637,59073.0,59068.0,0.204643]
[1724989129884,0.18027726,59069.0,59068.0,0.204643]
[1724989130191,0.084637,59073.0,59072.0,0.084638]
[1724989130192,0.02778153,59073.0,59072.0,0.084638]
[1724989130381,0.02778153,59073.0,59072.0,0.565438]
[1724989130582,0.2218813,59073.0,59072.0,0.4808]
[1724989130778,0.22184813,59073.0,59072.0,0.49298562]
[1724989130972,0.19409977,59073.0,59072.0,0.49298562]
[1724989131379,0.18026601,59074.0,59072.0,0.49298562]
[1724989131577,0.084634,59075.0,59072.0,0.49298562]
[1724989131883,0.001,59073.0,59072.0,0.49398562]
[1724989132280,0.18610969,59073.0,59072.0,0.49398562]
[1724989132481,0.18510969,59073.0,59072.0,0.49398562]
[1724989132777,0.001,59074.0,59072.0,0.57862262]
[1724989132973,0.19214057,59074.0,59072.0,0.57962262]
[1724989133170,0.001,59074.0,59072.0,0.09882262]
[1724989133375,0.19114057,59073.0,59072.0,0.09882262]
[1724989134379,0.19114057,59073.0,59072.0,0.21882262]
[1724989134679,0.19214057,59073.0,59072.0,0.21882262]
[1724989135073,0.001,59073.0,59072.0,0.21882262]
[1724989135278,0.18106227,59073.0,59072.0,0.21882262]
[1724989135474,0.18106227,59073.0,59072.0,0.57962262]
[1724989137983,0.18106227,59073.0,59072.0,0.74962262]
[1724989138681,0.25053496,59073.0,59072.0,0.74962262]
[1724989139682,0.18106227,59073.0,59072.0,0.74962262]
[1724989141886,0.18106227,59073.0,59072.0,0.83426062]
[1724989147879,0.001,59073.0,59072.0,0.83426062]
[1724989148680,0.00016845,59078.0,59077.0,0.169262]
[1724989148888,0.12059065,59093.0,59084.0,0.084621]
[1724989148889,0.0039,59085.0,59084.0,0.084621]
[1724989149192,0.19548478,59079.0,59078.0,0.088529]
[1724989149379,0.19548478,59079.0,59078.0,0.084629]
[1724989149688,0.19548478,59079.0,59077.0,0.6508]
[1724989149689,0.28010678,59084.0,59081.0,0.084624]
[1724989149892,0.19548478,59083.0,59081.0,0.084624]
[1724989150090,0.084622,59084.0,59082.0,0.084623]
[1724989150389,0.18069915,59083.0,59082.0,0.084623]
[1724989151890,0.18069915,59083.0,59082.0,0.085623]
[1724989152195,0.18069915,59083.0,59082.0,0.086623]
[1724989152711,0.19340174,59086.0,59083.0,0.084621]
[1724989152893,0.084621,59084.0,59083.0,0.084621]
[1724989153397,0.26588749,59084.0,59083.0,0.084621]
[1724989153993,0.26588749,59084.0,59083.0,0.085621]
[1724989154597,0.26588749,59084.0,59083.0,0.09800357]
[1724989154999,0.26588749,59084.0,59083.0,0.09900357]
[1724989158695,0.169258,59078.0,59077.0,0.00025391]
[1724989158894,0.084639,59071.0,59070.0,0.0039]
[1724989159200,0.27624717,59071.0,59070.0,0.12]
[1724989159798,0.19160817,59071.0,59070.0,0.204641]
[1724989160095,0.084635,59074.0,59070.0,0.204641]
[1724989160096,0.17893366,59073.0,59072.0,0.084637]
[1724989160298,0.17893366,59073.0,59072.0,0.204637]
[1724989160602,0.084635,59074.0,59072.0,0.204637]
[1724989160801,0.17893366,59073.0,59072.0,0.204637]
[1724989161496,0.17993366,59073.0,59072.0,0.205637]
[1724989162499,0.18193366,59073.0,59072.0,0.206637]
[1724989177422,0.18193366,59073.0,59072.0,0.086637]
[1724989178617,0.26656966,59073.0,59072.0,0.086637]
[1724989178819,0.35120566,59073.0,59072.0,0.002]
[1724989179010,0.084643,59068.0,59065.0,0.00415391]
[1724989179212,0.204646,59066.0,59065.0,0.00025391]
[1724989179417,0.712566,59066.0,59065.0,0.00025391]
[1724989179621,0.89385222,59066.0,59065.0,0.00025391]
[1724989180121,0.77385222,59066.0,59065.0,0.00025391]
[1724989180421,0.85849822,59066.0,59065.0,0.00025391]
[1724989180611,0.85949822,59066.0,59065.0,0.00025391]
[1724989181713,0.8872039,59066.0,59065.0,0.00025391]
[1724989182519,0.8892039,59066.0,59065.0,0.00025391]
[1724989182732,0.8045579,59066.0,59065.0,0.00025391]
[1724989183713,0.7199119,59066.0,59059.0,0.01223551]
[1724989184023,0.7199119,59066.0,59041.0,0.28120206]
[1724989184024,0.735454,59061.0,59041.0,0.01306982]
[1724989184217,0.3608,59048.0,59041.0,0.01218982]
[1724989184413,0.08468,59043.0,59038.0,0.3608]
[1724989184811,0.18003722,59042.0,59038.0,0.445486]
[1724989185019,0.18003722,59042.0,59038.0,0.084686]
[1724989185317,0.17903722,59042.0,59039.0,0.084685]
[1724989186214,0.17903722,59042.0,59041.0,0.014]
[1724989186625,0.17903722,59042.0,59039.0,0.084685]
[1724989186828,0.18003722,59042.0,59039.0,0.098685]
[1724989187216,0.18003722,59042.0,59039.0,0.084685]
[1724989187416,0.26571822,59042.0,59041.0,0.014]
[1724989187617,0.26471822,59042.0,59041.0,0.028]
[1724989187825,0.26571822,59042.0,59041.0,0.028]
[1724989188623,0.26571822,59042.0,59041.0,0.014]
[1724989189124,0.26471822,59042.0,59039.0,0.112685]
[1724989189518,0.26471822,59042.0,59039.0,0.098685]
[1724989189717,0.26471822,59042.0,59041.0,0.014]
[1724989191323,0.26471822,59042.0,59041.0,0.028]
[1724989192022,0.26471822,59042.0,59041.0,0.04044732]
[1724989193030,0.26471822,59042.0,59041.0,0.02644732]
[1724989193231,0.26471822,59042.0,59041.0,0.02744732]
[1724989197424,0.26471822,59042.0,59041.0,0.015]
[1724989197626,0.34939922,59042.0,59041.0,0.015]
[1724989198837,0.169378,59036.0,59035.0,0.00025391]
[1724989199030,0.530178,59036.0,59035.0,0.00025391]
[1724989199230,1.89944016,59036.0,59035.0,1e-08]
[1724989199731,1.89544016,59036.0,59035.0,1e-08]
[1724989200638,1.89844016,59036.0,59035.0,1e-08]
[1724989201841,1.90444016,59036.0,59035.0,0.00100001]
[1724989202236,1.91680887,59036.0,59035.0,0.00100001]
[1724989202431,1.92680887,59036.0,59035.0,0.00200001]
[1724989203333,1.93480887,59036.0,59035.0,0.00200001]
[1724989209353,1.33480887,59036.0,59035.0,0.00200001]
[1724989209850,1.25511987,59036.0,59035.0,0.00200001]
[1724989210445,1.33980887,59036.0,59035.0,0.00200001]
[1724989211349,0.64990216,59036.0,59035.0,0.00200001]
[1724989212952,0.64990216,59036.0,59035.0,0.01422499]
[1724989213758,0.63590216,59036.0,59035.0,0.01322499]
[1724989214058,0.64990216,59036.0,59035.0,0.09891599]
[1724989215463,0.64990216,59036.0,59035.0,0.09791599]
[1724989215854,0.56521316,59036.0,59035.0,0.09791599]
[1724989216055,0.20441316,59036.0,59035.0,1.34156699]
[1724989216254,0.20441316,59036.0,59035.0,1.94056699]
[1724989216756,0.20441316,59036.0,59035.0,1.34056699]
[1724989217769,0.20441316,59036.0,59035.0,1.25587599]
[1724989218070,0.20441316,59036.0,59035.0,0.45771599]
[1724989219353,0.28910216,59036.0,59035.0,0.01222499]
[1724989219672,0.28910216,59036.0,59035.0,1e-08]
[1724989223168,0.37379116,59036.0,59035.0,1e-08]
[1724989226172,0.28910216,59036.0,59035.0,1e-08]
[1724989234572,0.28910216,59036.0,59035.0,0.01218725]
[1724989235369,0.20441316,59036.0,59035.0,0.09687825]
[1724989237481,0.02738361,59042.0,59035.0,1.56583825]
[1724989237678,0.36196,59056.0,59035.0,1.56583825]
[1724989237679,0.00116,59056.0,59041.0,0.6508]
[1724989237980,0.084658,59058.0,59051.0,0.29]
[1724989238282,0.084658,59058.0,59050.0,0.084668]
[1724989238283,0.3608,59055.0,59050.0,0.084668]
[1724989238581,0.18745688,59054.0,59051.0,0.084668]
[1724989239778,0.19465858,59057.0,59051.0,0.084668]
[1724989239971,0.001,59056.0,59051.0,0.084668]
[1724989240381,0.1893655,59055.0,59051.0,0.084668]
[1724989240582,0.1923655,59055.0,59051.0,0.084668]
[1724989241082,0.001,59054.0,59051.0,0.084668]
[1724989241481,0.17750112,59053.0,59051.0,0.084668]
[1724989241684,0.3608,59052.0,59047.0,0.00025391]
[1724989241889,0.374672,59048.0,59047.0,0.00025391]
[1724989242083,0.084672,59048.0,59047.0,0.00025391]
[1724989242385,0.27834073,59048.0,59047.0,0.00025391]
[1724989243286,0.28934073,59048.0,59047.0,0.00025391]
[1724989243780,0.29034073,59048.0,59047.0,0.00325391]
[1724989244389,0.29034073,59048.0,59047.0,0.00025391]
[1724989244586,0.29834073,59048.0,59047.0,0.00125391]
[1724989246502,0.29934073,59048.0,59047.0,0.00125391]
[1724989246886,0.29134073,59048.0,59047.0,0.00025391]
[1724989247081,0.30634073,59048.0,59047.0,0.00125391]
[1724989247693,0.29234073,59048.0,59047.0,0.00025391]
[1724989247894,0.30634073,59048.0,59047.0,0.00125391]
[1724989249098,1.98054873,59048.0,59032.0,0.084695]
[1724989249396,1.98054873,59048.0,59030.0,0.5235]
[1724989249397,0.374692,59034.0,59031.0,0.01216217]
[1724989249598,0.374692,59034.0,59030.0,0.3608]
[1724989249793,0.18243168,59033.0,59030.0,0.3608]
[1724989250183,0.18243168,59033.0,59032.0,0.003]
[1724989250385,0.18243168,59033.0,59032.0,0.004]
[1724989250587,0.26712568,59033.0,59032.0,0.004]
[1724989250783,0.26712568,59033.0,59032.0,0.001]
[1724989251003,0.26712568,59033.0,59030.0,0.003]
[1724989251004,0.084697,59031.0,59030.0,0.003]
[1724989251191,0.169394,59031.0,59030.0,0.006]
[1724989251399,0.34738989,59031.0,59030.0,0.003]
[1724989252996,0.083702,59027.0,59026.0,0.00025391]
[1724989253304,0.92349756,59027.0,59026.0,0.00025391]
[1724989253792,0.92249756,59027.0,59026.0,0.00025391]
[1724989254301,0.92649756,59027.0,59026.0,0.00025391]
[1724989254695,0.93249756,59027.0,59026.0,0.00125391]
[1724989256197,0.64249756,59027.0,59026.0,0.00125391]
[1724989261391,0.93249756,59027.0,59026.0,0.00125391]
[1724989265502,0.95281739,59027.0,59026.0,0.00125391]
[1724989266111,0.66281739,59027.0,59026.0,0.00125391]
[1724989267207,0.64249756,59027.0,59026.0,0.00125391]
[1724989271108,0.65502967,59027.0,59026.0,0.00125391]
[1724989272117,0.29422967,59027.0,59026.0,0.00125391]
[1724989272306,0.65502967,59027.0,59026.0,0.00125391]
[1724989275813,0.64249756,59027.0,59026.0,0.00125391]
[1724989279012,0.72719956,59027.0,59026.0,0.00125391]
[1724989279310,0.64249756,59027.0,59026.0,0.00125391]
[1724989282016,0.28169756,59027.0,59026.0,0.00125391]
[1724989282213,0.64249756,59027.0,59026.0,0.00125391]
[1724989282615,0.19899556,59027.0,59026.0,0.09851363]
[1724989282817,0.19899556,59027.0,59026.0,0.08595791]
[1724989283119,0.19899556,59027.0,59026.0,0.59419791]
[1724989283420,0.19899556,59027.0,59026.0,0.08595791]
[1724989285117,0.19899556,59027.0,59026.0,0.44675791]
[1724989286111,0.19899556,59027.0,59026.0,0.73675791]
[1724989286512,0.19899556,59027.0,59026.0,1.92970191]
[1724989289019,0.19899556,59027.0,59026.0,1.32970191]
[1724989289224,0.19899556,59027.0,59026.0,1.92970191]
[1724989289416,0.01,59027.0,59026.0,1.92970191]
[1724989294411,0.01,59027.0,59026.0,1.55499791]
[1724989294614,0.198556,59027.0,59026.0,0.08595791]
[1724989296028,0.05593955,59029.0,59028.0,0.084701]
[1724989296518,0.24116319,59029.0,59028.0,0.084701]
[1724989297327,0.24916319,59029.0,59028.0,0.084701]
[1724989297828,0.25616319,59029.0,59028.0,0.084701]
[1724989300425,0.084702,59027.0,59026.0,0.00025391]
[1724989300631,0.169404,59027.0,59026.0,0.00025391]
[1724989300930,0.64634596,59027.0,59026.0,0.00025391]
[1724989301424,1.75458596,59027.0,59026.0,0.00025391]
[1724989301618,1.75958596,59027.0,59026.0,0.00025391]
[1724989301819,0.65134596,59027.0,59026.0,0.00025391]
[1724989302325,1.75958596,59027.0,59026.0,0.00025391]
[1724989302523,1.7722272,59027.0,59026.0,0.00025391]
[1724989302723,1.1722272,59027.0,59026.0,0.00025391]
[1724989303229,1.7722272,59027.0,59026.0,0.00025391]
[1724989303430,1.7762272,59027.0,59026.0,0.00025391]
[1724989304319,1.1762272,59027.0,59026.0,0.00025391]
[1724989304521,1.19645773,59027.0,59026.0,0.00025391]
[1724989304830,1.79645773,59027.0,59026.0,0.00025391]
[1724989305027,1.19645773,59027.0,59026.0,0.00025391]
[1724989305235,0.68821773,59027.0,59026.0,0.00025391]
[1724989305922,1.79645773,59027.0,59026.0,0.00025391]
[1724989306931,1.19645773,59027.0,59026.0,0.00025391]
[1724989307932,1.91805773,59027.0,59026.0,0.00025391]
[1724989308932,1.19645773,59027.0,59026.0,0.00025391]
[1724989309235,1.91805773,59027.0,59026.0,0.00025391]
[1724989309837,2.51805773,59027.0,59026.0,0.00025391]
[1724989310031,2.51805773,59027.0,59019.0,0.0039]
[1724989310032,0.169424,59020.0,59019.0,0.0039]
[1724989310222,0.169424,59020.0,59012.0,0.088623]